bitfinex/quotes_ETHUSD_20220115
["timestamp","ask_amount","ask_price","bid_price","bid_amount"]
[1642255507322,0.93126473,3306.9,3306.3,0.00284211]
[1642255507528,0.93126473,3306.9,3306.5,0.00170527]
[1642255507726,0.7562303,3307.4,3306.5,0.00170527]
[1642255507727,0.017162,3308.8,3306.8,0.01224375]
[1642255507928,0.017162,3308.8,3306.9,0.06348222]
[1642255508127,0.017162,3308.8,3308.3,0.01209348]
[1642255508323,1.51169,3309.1,3308.3,0.01209348]
[1642255508525,0.121113,3309.7,3307.2,2.72587318]
[1642255508824,3.8456,3310.0,3308.1,13.7]
[1642255508825,2.26737,3310.0,3308.1,13.7]
[1642255509026,0.00341054,3309.6,3308.2,2.85545159]
[1642255509269,0.00341054,3309.6,3308.2,1.34594859]
[1642255509270,1.51151,3309.5,3308.2,1.34594859]
[1642255509469,1.51435212,3309.5,3308.3,0.00397896]
[1642255509671,0.05461132,3309.3,3308.3,0.00397896]
[1642255509870,0.01809589,3309.3,3308.3,0.00397896]
[1642255510075,1.53613908,3309.4,3308.0,0.97040757]
[1642255510076,1.37187146,3308.1,3308.0,0.97040757]
[1642255510471,20.30251586,3308.1,3308.0,6.04760527]
[1642255510671,17.6,3308.1,3308.0,6.04760527]
[1642255510870,18.99595977,3308.1,3308.0,6.04760527]
[1642255511069,18.99595977,3308.1,3308.0,3.06460527]
[1642255511670,19.90813574,3308.1,3308.0,3.06460527]
[1642255511872,19.90813574,3308.1,3308.0,1.31659078]
[1642255512072,19.90813574,3308.1,3308.0,9.078e-05]
[1642255512276,1.51231,3307.6,3306.0,7.6652]
[1642255512473,1.51231,3307.6,3305.6,7.4466]
[1642255512474,0.03967307,3307.4,3305.6,6.21]
[1642255512679,17.6,3307.4,3305.6,6.21]
[1642255512922,4.91054301,3307.3,3305.6,6.21]
[1642255513125,2.29519192,3307.2,3305.9,0.00738951]
[1642255513323,0.75656,3306.4,3305.9,0.00738951]
[1642255513524,0.75652,3306.2,3305.9,0.00738951]
[1642255513924,0.85138401,3306.1,3305.9,0.00738951]
[1642255514324,1.10373626,3306.5,3305.9,0.02711938]
[1642255514522,1.10373626,3306.5,3305.9,0.00738951]
[1642255514523,1.86006626,3306.5,3305.9,0.00738951]
[1642255514724,1.86006626,3306.5,3305.5,6.0]
[1642255514725,3.5,3306.4,3305.5,6.0]
[1642255514926,2.70251586,3306.3,3305.5,6.0]
[1642255515124,0.00170527,3306.3,3305.6,0.0022737]
[1642255515327,0.00113684,3306.2,3305.6,0.0022737]
[1642255515524,0.75652,3305.9,3305.6,0.0022737]
[1642255515724,0.020073,3305.8,3305.6,0.0022737]
[1642255515925,0.99022196,3306.1,3305.6,2.58915754]
[1642255516125,2.70251586,3307.1,3305.6,2.58915754]
[1642255516324,2.70251586,3307.2,3305.7,0.02369294]
[1642255516525,1.51478429,3306.5,3305.7,0.00170527]
[1642255516775,1.51478429,3306.5,3305.6,2.58688384]
[1642255516776,1.51478429,3306.5,3305.8,0.00113685]
[1642255516977,1.51478429,3306.5,3305.6,2.58688384]
[1642255516978,0.75649,3306.3,3305.7,0.00170527]
[1642255517173,2.60800219,3306.2,3305.9,0.91073011]
[1642255517371,2.60913903,3306.2,3305.9,0.91073011]
[1642255518173,0.00113684,3306.2,3305.9,0.91073011]
[1642255518370,0.00113684,3306.2,3306.0,0.02472859]
[1642255518571,0.00113684,3306.2,3305.9,0.91073011]
[1642255518971,3.37644726,3307.3,3306.1,0.0058885]
[1642255519172,0.13819997,3307.3,3306.1,4.0135]
[1642255519373,0.13819997,3307.3,3306.0,7.60113684]
[1642255519374,0.02318139,3306.3,3306.0,0.00113684]
[1642255519572,0.00113685,3306.4,3306.0,0.00113684]
[1642255520173,0.03910073,3306.3,3306.0,0.00113684]
[1642255520429,9.36950174,3306.1,3306.0,0.00113684]
[1642255520623,1.16950174,3306.1,3305.5,4.48521571]
[1642255520828,3.78382312,3307.2,3305.6,20.20848775]
[1642255521025,3.78382312,3307.2,3306.7,0.01242956]
[1642255521026,1.51446312,3307.2,3306.7,0.01242956]
[1642255521223,3.9664,3308.2,3306.8,0.97793493]
[1642255521425,1.51234,3307.9,3306.9,0.02611517]
[1642255521626,0.81048316,3308.4,3307.0,14.0]
[1642255521826,0.017162,3308.8,3308.4,1.1804302]
[1642255522024,0.75939654,3308.7,3308.4,1.1804302]
[1642255522223,0.00341054,3308.7,3308.4,1.1804302]
[1642255522422,0.00284212,3308.6,3308.5,9.19853397]
[1642255522623,0.00284212,3308.6,3308.5,12.74853397]
[1642255523028,0.121123,3309.4,3308.6,11.4]
[1642255523228,9.9139,3310.7,3308.7,10.33954504]
[1642255523423,0.00170527,3308.9,3308.8,11.95]
[1642255523624,6.21,3310.7,3309.0,0.91676708]
[1642255523824,4.867162,3310.7,3309.2,8.6]
[1642255524024,0.00852635,3310.4,3309.2,8.6]
[1642255524271,0.00852635,3310.4,3309.1,4.2469]
[1642255524474,0.08180783,3310.3,3309.1,0.3463]
[1642255524674,0.08180783,3310.3,3308.8,2.80096573]
[1642255524675,0.01261727,3309.5,3308.8,2.80096573]
[1642255524874,0.04471587,3308.8,3308.0,3.8415]
[1642255525271,0.04471587,3308.8,3308.1,1.12541536]
[1642255525471,1.20763766,3308.7,3308.1,1.12541536]
[1642255525676,0.7559915,3308.6,3308.2,0.00397897]
[1642255525873,0.02741895,3308.4,3308.2,0.00397897]
[1642255526073,1.20763766,3308.7,3308.2,0.00397897]
[1642255526671,1.20763766,3308.7,3308.3,0.00380695]
[1642255527072,0.02413876,3308.6,3308.4,0.00284212]
[1642255527375,1.20763766,3308.7,3308.2,0.00397897]
[1642255528326,0.04215448,3308.6,3308.2,0.00397897]
[1642255528523,1.20763766,3308.7,3308.2,0.00397897]
[1642255528922,1.51363788,3309.0,3308.2,0.00397897]
[1642255529730,6.28883,3310.8,3308.2,0.00397897]
[1642255529731,0.00625266,3310.0,3308.5,0.01248987]
[1642255529929,0.00625266,3310.0,3308.6,1.42403581]
[1642255530128,0.00568423,3309.9,3308.7,3.8691]
[1642255530327,0.00568423,3309.9,3309.5,1.23716554]
[1642255530527,1.43833125,3310.3,3309.5,1.23716554]
[1642255530528,0.00511581,3309.8,3309.5,1.23716554]
[1642255530725,0.27633488,3309.3,3308.8,3.6169]
[1642255530929,0.27633488,3309.3,3309.2,1.47456234]
[1642255531126,0.27633488,3309.3,3309.2,7.51836234]
[1642255531327,1.43833125,3310.3,3309.2,7.51836234]
[1642255531526,2.75034592,3310.5,3309.2,7.51836234]
[1642255531776,0.00682108,3310.1,3309.2,7.51836234]
[1642255532171,0.00625266,3310.0,3309.2,7.51836234]
[1642255532572,0.04988321,3309.9,3309.2,7.51836234]
[1642255532773,0.00568423,3309.9,3309.2,7.51836234]
[1642255532975,0.75549,3310.6,3309.2,7.51836234]
[1642255532976,0.00511581,3309.8,3309.2,7.51836234]
[1642255533275,0.00454739,3309.7,3309.2,6.0438]
[1642255533777,0.00397896,3309.6,3309.2,6.0438]
[1642255534175,0.03597581,3309.5,3309.2,6.0438]
[1642255534574,1.44198925,3309.4,3309.2,3.26802042]
[1642255534776,13.68659887,3309.3,3309.2,3.21167183]
[1642255534977,13.68659887,3309.3,3308.9,0.92400016]
[1642255534978,20.28887256,3309.3,3308.9,0.92400016]
[1642255535176,0.05868784,3309.2,3308.9,0.92400016]
[1642255535421,17.55170527,3309.2,3309.1,0.46426299]
[1642255535622,17.55170527,3309.2,3308.7,0.00113685]
[1642255535623,1.22131694,3309.1,3308.9,1.12882855]
[1642255535825,20.6447882,3309.0,3308.9,1.12882855]
[1642255536027,7.86363788,3309.0,3308.9,1.12882855]
[1642255536223,1.51363788,3309.0,3308.9,1.12882855]
[1642255536523,6.66363788,3309.0,3308.9,1.12882855]
[1642255536728,5.15,3309.0,3308.9,1.12882855]
[1642255537122,0.00113684,3309.1,3308.9,1.12882855]
[1642255540771,0.02567333,3309.1,3308.9,1.12882855]
[1642255540970,0.00113684,3309.1,3308.9,1.12882855]
[1642255541174,3.4112361,3309.1,3308.9,1.12882855]
[1642255541372,14.40585,3309.0,3308.9,1.12882855]
[1642255541772,13.65,3309.0,3308.9,1.12882855]
[1642255541972,0.75698834,3309.1,3308.9,1.12882855]
[1642255542373,0.00113684,3309.1,3308.9,1.12882855]
[1642255542775,12.90584,3309.0,3308.9,1.12882855]
[1642255544026,12.90584,3309.0,3308.0,0.00511581]
[1642255544235,17.95584,3309.0,3308.0,0.00511581]
[1642255544428,1.5119864,3308.6,3308.0,0.00511581]
[1642255544630,0.75603,3308.3,3307.9,0.00568424]
[1642255545026,0.03917383,3308.1,3307.9,0.00568424]
[1642255545227,1.48599022,3308.2,3307.9,0.00568424]
[1642255545629,2.99812152,3308.2,3308.0,1.12965096]
[1642255545827,1.48599022,3308.2,3308.0,1.12965096]
[1642255546026,1.48599022,3308.2,3308.1,0.00454739]
[1642255546432,8.18599022,3308.2,3308.1,0.00454739]
[1642255546682,1.48599022,3308.2,3308.1,0.00454739]
[1642255546879,0.7558529,3308.8,3308.1,0.00454739]
[1642255547078,1.51391286,3308.4,3308.1,0.00454739]
[1642255549180,0.03415371,3308.3,3308.1,0.00454739]
[1642255549382,1.51391286,3308.4,3308.1,0.00454739]
[1642255549782,1.51391286,3308.4,3308.2,0.01864629]
[1642255549982,0.045463,3309.2,3308.2,0.01864629]
[1642255550182,0.045463,3309.2,3308.3,0.00341054]
[1642255550430,1.51372953,3308.8,3308.3,2.84250327]
[1642255550627,1.51372953,3308.8,3308.3,0.00341054]
[1642255550828,1.51372953,3308.8,3308.5,1.11696109]
[1642255550829,2.2674445,3308.6,3308.5,1.11696109]
[1642255551229,2.2674445,3308.6,3308.5,1.11923479]
[1642255551631,2.2674445,3308.6,3308.5,7.16413479]
[1642255552030,2.2674445,3308.6,3308.5,1.11790389]
[1642255552430,0.0619085,3308.5,3307.9,1.2064]
[1642255552733,0.755851,3308.3,3308.0,0.00284211]
[1642255552930,0.755851,3308.3,3307.3,1.51828964]
[1642255553129,6.5,3308.2,3308.1,1.16553471]
[1642255553329,6.50113684,3308.2,3308.1,1.16553471]
[1642255553531,6.50113684,3308.2,3307.4,0.00341054]
[1642255553532,7.3,3308.1,3307.4,0.00341054]
[1642255553730,0.7560341,3307.9,3307.5,1.17353307]
[1642255554185,0.7560341,3307.9,3307.6,0.0022737]
[1642255554373,1.31701316,3307.8,3307.6,0.0022737]
[1642255554974,0.7560341,3307.9,3307.6,0.0022737]
[1642255555574,0.75697544,3308.2,3307.6,0.0022737]
[1642255555774,0.75697544,3308.2,3307.6,2.79230651]
[1642255555974,2.06345275,3308.2,3307.6,2.79253132]
[1642255556174,2.06345275,3308.2,3307.7,0.00170527]
[1642255557076,2.06345275,3308.2,3307.6,0.0022737]
[1642255557776,2.06345275,3308.2,3307.6,2.75240293]
[1642255558225,2.06345275,3308.2,3307.7,0.00170527]
[1642255558625,2.06345275,3308.2,3307.6,0.0022737]
[1642255559027,1.1838484,3307.7,3307.6,2.76607473]
[1642255559230,1.1838484,3307.7,3307.6,0.0022737]
[1642255560227,0.75697544,3308.2,3307.6,0.0022737]
[1642255560427,0.75697544,3308.2,3307.6,2.79697803]
[1642255560827,0.75697544,3308.2,3307.7,0.00170527]
[1642255561028,0.80286135,3308.1,3307.7,0.00170527]
[1642255561328,0.7558481,3308.1,3307.6,2.74537115]
[1642255561528,0.00113684,3308.2,3307.6,2.74537115]
[1642255561781,0.00113684,3308.2,3307.7,0.00170527]
[1642255562173,1.25961626,3308.1,3307.7,0.00170527]
[1642255562374,0.06626301,3308.0,3307.7,0.00170527]
[1642255562574,1.25961626,3308.1,3307.7,0.00170527]
[1642255562873,1.25961626,3308.1,3307.6,0.0022737]
[1642255563074,0.06196987,3308.0,3307.6,0.0022737]
[1642255563476,1.25961626,3308.1,3307.7,0.00339064]
[1642255563674,1.25961626,3308.1,3307.6,0.0022737]
[1642255563874,1.25961626,3308.1,3307.8,0.00113685]
[1642255564076,2.01545616,3308.1,3307.6,0.0022737]
[1642255564285,0.04376715,3308.0,3307.6,0.0022737]
[1642255564676,2.01545616,3308.1,3307.6,0.0022737]
[1642255564874,2.01545616,3308.1,3307.7,0.01271693]
[1642255565074,2.01545616,3308.1,3308.0,1.09400879]
[1642255565277,7.06545616,3308.1,3308.0,1.09400879]
[1642255566333,7.06545616,3308.1,3307.8,0.00113685]
[1642255566633,0.06626301,3308.0,3307.2,0.00454739]
[1642255566837,0.7558971,3307.8,3307.2,0.00454739]
[1642255567134,0.7558971,3307.8,3307.3,6.0469]
[1642255567936,0.7558971,3307.8,3307.4,0.01770051]
[1642255568137,0.7558971,3307.8,3307.3,6.0469]
[1642255568336,0.7558971,3307.8,3307.5,1.0142077]
[1642255568737,0.7558971,3307.8,3307.6,0.0022737]
[1642255569179,0.7558715,3308.0,3307.6,0.0022737]
[1642255569577,6.30961626,3308.1,3307.6,0.0022737]
[1642255569774,6.30961626,3308.1,3307.6,2.85977475]
[1642255569775,1.25961626,3308.1,3307.6,2.85977475]
[1642255570175,1.25961626,3308.1,3307.7,0.00170527]
[1642255571175,1.25961626,3308.1,3307.6,0.0022737]
[1642255571579,0.02132889,3308.0,3307.6,0.0022737]
[1642255571776,0.7558995,3308.0,3307.6,0.0022737]
[1642255572177,0.04266089,3307.9,3307.6,0.0022737]
[1642255572378,0.7558995,3308.0,3307.6,0.0022737]
[1642255572778,0.02611484,3307.9,3307.6,0.0022737]
[1642255573027,0.7558995,3308.0,3307.6,0.0022737]
[1642255573427,2.01547386,3308.1,3307.6,0.0022737]
[1642255574230,2.01547386,3308.1,3307.6,2.72449489]
[1642255574428,2.01547386,3308.1,3307.6,0.0022737]
[1642255574631,1.25961626,3308.1,3307.7,0.00170527]
[1642255574829,0.03652545,3308.0,3307.6,0.0022737]
[1642255575029,1.25961626,3308.1,3307.7,0.00170527]
[1642255575329,1.25961626,3308.1,3307.6,0.0022737]
[1642255575529,2.01546976,3308.1,3307.6,0.0022737]
[1642255575928,0.03510654,3308.0,3307.6,0.0022737]
[1642255576800,2.01546976,3308.1,3307.7,0.0316949]
[1642255577188,2.01546976,3308.1,3307.8,0.00113685]
[1642255577986,2.01546976,3308.1,3307.6,0.0022737]
[1642255578187,0.06626301,3308.0,3307.6,0.0022737]
[1642255578585,2.01546976,3308.1,3307.6,0.0022737]
[1642255579387,2.01546976,3308.1,3307.6,2.58761967]
[1642255579587,2.01546976,3308.1,3308.0,0.94904784]
[1642255582329,0.06626301,3308.0,3307.7,0.00170527]
[1642255582526,2.01546976,3308.1,3307.7,0.00170527]
[1642255582926,0.77498453,3308.0,3307.7,0.00170527]
[1642255583126,0.7559207,3308.0,3307.7,0.00170527]
[1642255583437,10.695463,3307.8,3307.7,0.00170527]
[1642255583628,17.55,3307.7,3307.4,2.45017515]
[1642255583826,8.95621,3307.5,3307.4,2.45017515]
[1642255584026,10.45,3307.4,3307.3,5.20468028]
[1642255584280,13.18312787,3307.4,3307.3,5.20468028]
[1642255584476,15.80489793,3307.4,3307.3,5.20468028]
[1642255585077,16.91969207,3307.4,3307.3,5.20468028]
[1642255585478,2.62177006,3307.4,3307.3,5.20468028]
[1642255585678,1.10931006,3307.4,3307.3,5.20468028]
[1642255587279,2.19736675,3307.4,3307.3,5.20468028]
[1642255589128,1.10931006,3307.4,3307.3,5.20468028]
[1642255593879,17.80931006,3307.4,3307.3,5.20468028]
[1642255594279,17.85477306,3307.4,3307.3,5.20468028]
[1642255594886,17.80931006,3307.4,3307.3,5.20468028]
[1642255595528,1.86550006,3307.4,3307.3,5.20468028]
[1642255596131,1.10931006,3307.4,3307.3,5.20468028]
[1642255598828,12.95931006,3307.4,3307.3,5.20468028]
[1642255600076,12.95931006,3307.4,3306.1,9.25549052]
[1642255600077,12.7,3307.3,3306.1,9.24295026]
[1642255600278,0.7562987,3306.8,3306.1,9.24295026]
[1642255600481,0.94362123,3306.3,3306.2,5.05852636]
[1642255600977,0.045463,3306.6,3306.2,5.05852636]
[1642255601178,1.53734376,3306.5,3306.2,5.05852636]
[1642255601379,1.53734376,3306.5,3306.3,0.00795793]
[1642255601988,0.045463,3306.6,3306.4,1.13285622]
[1642255602179,12.7,3307.3,3306.4,1.13285622]
[1642255602381,3.78284938,3307.4,3306.5,0.00682109]
[1642255602582,0.756162,3307.1,3306.5,0.00682109]
[1642255604049,0.045463,3307.2,3306.5,0.00682109]
[1642255604449,0.045463,3307.2,3306.6,2.58592688]
[1642255604848,0.045463,3307.2,3306.8,0.01186985]
[1642255605049,0.045463,3307.2,3306.9,0.93774531]
[1642255605248,0.045463,3307.2,3306.9,0.9422927]
[1642255605450,0.045463,3307.2,3307.0,0.00397897]
[1642255605451,0.7561516,3307.1,3307.0,0.00397897]
[1642255606148,2.11035836,3307.1,3307.0,2.58990585]
[1642255606548,1.35420676,3307.1,3307.0,2.58990585]
[1642255606978,1.35420676,3307.1,3307.0,0.00397897]
[1642255607380,0.045463,3307.3,3306.8,0.00511582]
[1642255607579,0.045463,3307.3,3307.0,2.58592688]
[1642255607781,1.00575586,3307.2,3307.0,2.58592688]
[1642255607980,1.00575586,3307.2,3307.1,0.00341054]
[1642255608182,0.045463,3307.3,3307.1,0.00341054]
[1642255608581,0.045463,3307.3,3307.1,0.01557789]
[1642255608781,1.38171389,3307.3,3307.1,0.00341054]
[1642255608981,1.38171389,3307.3,3307.2,0.00284212]
[1642255608982,1.35503961,3307.3,3307.2,0.00284212]
[1642255609284,1.35503961,3307.3,3306.5,0.00682109]
[1642255609484,0.045463,3307.3,3306.5,0.00682109]
[1642255609684,0.045463,3307.3,3306.6,0.00338938]
[1642255609983,0.045463,3307.3,3306.7,0.92120917]
[1642255610285,1.02462548,3307.3,3306.8,0.00511582]
[1642255611132,0.045463,3307.3,3306.8,0.00511582]
[1642255611626,0.7561189,3307.3,3306.9,2.58576247]
[1642255611825,0.045463,3307.2,3306.9,2.58576247]
[1642255612026,0.8015819,3307.3,3307.0,0.00397897]
[1642255612425,0.0570833,3307.2,3307.0,0.00397897]
[1642255612626,0.8015819,3307.3,3306.8,0.00511582]
[1642255613127,0.8015819,3307.3,3306.9,0.01970448]
[1642255613331,0.8015819,3307.3,3306.8,0.00511582]
[1642255613527,0.8015819,3307.3,3307.0,0.00397897]
[1642255613528,0.045463,3307.3,3307.0,0.00397897]
[1642255613727,0.045463,3307.3,3306.8,0.00511582]
[1642255614586,0.045463,3307.3,3306.8,2.80961909]
[1642255615085,0.045463,3307.3,3306.9,2.59035117]
[1642255615287,0.045463,3307.3,3307.0,0.0232536]
[1642255615487,0.045463,3307.3,3307.0,0.00397897]
[1642255615686,0.045463,3307.3,3307.1,0.00341054]
[1642255615890,0.045463,3307.3,3307.2,0.87137861]
[1642255616087,1.51437138,3307.4,3307.0,0.00397897]
[1642255616288,1.51437138,3307.4,3307.2,0.00284212]
[1642255616486,1.51437138,3307.4,3307.0,2.58580378]
[1642255616487,1.51437138,3307.4,3307.0,2.58978275]
[1642255616686,1.51437138,3307.4,3307.1,0.00341054]
[1642255616687,0.02578746,3307.3,3307.1,0.00341054]
[1642255616887,1.51437138,3307.4,3307.1,0.00341054]
[1642255617932,1.51437138,3307.4,3307.1,2.58921432]
[1642255618331,1.51437138,3307.4,3307.2,0.00284212]
[1642255618932,1.51437138,3307.4,3307.2,2.5886459]
[1642255619332,1.51437138,3307.4,3307.3,0.0022737]
[1642255620233,1.51437138,3307.4,3307.1,0.00341054]
[1642255620634,0.03821662,3307.3,3307.1,0.00341054]
[1642255621040,1.51437138,3307.4,3307.1,0.00341054]
[1642255621900,1.51437138,3307.4,3307.2,1.16045508]
[1642255622094,1.51437138,3307.4,3307.3,12.92700388]
[1642255622294,0.045463,3307.8,3307.3,9.9522737]
[1642255622595,6.0,3307.9,3307.4,3.03433187]
[1642255622794,6.0,3307.9,3307.4,3.03603714]
[1642255622998,1.29915769,3307.8,3307.5,0.00113685]
[1642255623397,1.29915769,3307.8,3307.5,0.75689685]
[1642255623599,1.29915769,3307.8,3307.6,2.8684353]
[1642255623796,1.29915769,3307.8,3307.5,0.75689685]
[1642255624196,1.29915769,3307.8,3307.6,2.82151522]
[1642255624797,1.29915769,3307.8,3307.6,2.84779908]
[1642255625197,1.29915769,3307.8,3307.7,6.16011054]
[1642255625426,1.29915769,3307.8,3307.7,1.06011054]
[1642255626038,1.29915769,3307.8,3307.7,3.64591432]
[1642255626236,14.34915769,3307.8,3307.7,2.47002148]
[1642255627429,6.19915769,3307.8,3307.7,2.47002148]
[1642255627630,6.19915769,3307.8,3307.5,0.00113685]
[1642255627830,1.29915769,3307.8,3307.5,0.00113685]
[1642255628031,1.29915769,3307.8,3306.9,0.00454739]
[1642255628228,1.29915769,3307.8,3307.3,0.90448137]
[1642255628430,1.43267098,3307.5,3307.3,0.90448137]
[1642255628630,1.43267098,3307.5,3307.4,0.00170527]
[1642255629031,1.43267098,3307.5,3307.4,2.83186804]
[1642255629477,1.43267098,3307.5,3307.4,0.00170527]
[1642255631177,1.43267098,3307.5,3307.4,2.84882392]
[1642255631382,1.43267098,3307.5,3307.4,9.89882392]
[1642255631579,1.43267098,3307.5,3307.4,9.99810383]
[1642255632378,1.43267098,3307.5,3307.4,7.05170527]
[1642255632779,1.43267098,3307.5,3307.4,0.00170527]
[1642255634429,7.63267098,3307.5,3307.4,0.00170527]
[1642255635230,1.43267098,3307.5,3307.4,0.00170527]
[1642255635431,1.43267098,3307.5,3307.4,8.4798675]
[1642255636877,1.43267098,3307.5,3307.4,5.65170527]
[1642255637879,1.43267098,3307.5,3307.4,0.00170527]
[1642255638379,7.18267098,3307.5,3307.4,0.00170527]
[1642255639382,14.28267098,3307.5,3307.4,0.00170527]
[1642255640284,7.18267098,3307.5,3307.4,0.00170527]
[1642255642329,14.38267098,3307.5,3307.4,0.00170527]
[1642255643732,1.43267098,3307.5,3307.4,0.00170527]
[1642255644381,6.0,3307.9,3307.4,3.95170527]
[1642255644382,0.045463,3307.8,3307.4,3.95170527]
[1642255644577,0.045463,3307.8,3307.4,6.7084768]
[1642255644778,0.045463,3307.8,3307.5,0.00113685]
[1642255645079,0.045463,3307.8,3307.5,1.51267685]
[1642255645278,6.0,3307.9,3307.5,1.51267685]
[1642255645577,6.0,3307.9,3307.6,2.80208583]
[1642255646581,1.12331803,3307.8,3307.6,2.80208583]
[1642255647479,1.12331803,3307.8,3307.7,9.58513442]
[1642255647680,1.12331803,3307.8,3307.7,12.60112566]
[1642255648128,3.5831314,3307.9,3307.7,12.60112566]
[1642255648329,5.10180324,3307.9,3307.8,10.61756949]
[1642255648729,5.10294008,3307.9,3307.8,10.61756949]
[1642255649132,5.10294008,3307.9,3307.8,14.89732046]
[1642255649332,5.10294008,3307.9,3307.8,7.19732046]
[1642255650335,5.10294008,3307.9,3307.8,17.24732046]
[1642255650539,5.10294008,3307.9,3307.8,23.29352046]
[1642255650938,3.58426824,3307.9,3307.8,41.00352046]
[1642255651335,3.40113597,3307.9,3307.8,41.00352046]
[1642255651535,1.29911898,3307.9,3307.8,41.00352046]
[1642255651807,0.045463,3308.4,3308.1,1.51113]
[1642255652001,1.52031553,3308.3,3308.2,8.89637746]
[1642255652205,1.52258923,3308.3,3308.2,14.39637746]
[1642255652401,1.52258923,3308.3,3308.2,8.63073442]
[1642255657231,5.76805223,3308.3,3308.2,8.63073442]
[1642255658431,8.59013679,3308.3,3308.2,8.63073442]
[1642255658632,5.76805223,3308.3,3308.2,8.63073442]
[1642255659480,6.52401223,3308.3,3308.2,8.63073442]
[1642255659681,5.76805223,3308.3,3308.2,8.63073442]
[1642255660282,5.76805223,3308.3,3308.2,6.0456]
[1642255661487,5.76805223,3308.3,3308.2,8.63079192]
[1642255661488,6.93799796,3308.3,3308.2,8.63079192]
[1642255661686,9.69617316,3308.3,3308.2,8.63079192]
[1642255662086,13.74617316,3308.3,3308.2,6.0456]
[1642255662287,9.69617316,3308.3,3308.2,6.0456]
[1642255662488,6.93799796,3308.3,3308.2,6.0456]
[1642255663627,5.76805223,3308.3,3308.2,6.0456]
[1642255664829,6.92768222,3308.3,3308.2,6.0456]
[1642255666031,2.72768222,3308.3,3308.2,6.0456]
[1642255666430,2.68221922,3308.3,3308.2,6.0456]
[1642255666684,1.52258923,3308.3,3308.2,6.0456]
[1642255667282,0.0022737,3308.3,3308.2,8.63056409]
[1642255668983,0.0022737,3308.3,3308.2,11.98056409]
[1642255670182,0.0022737,3308.3,3308.2,8.63056409]
[1642255674280,0.0477367,3308.3,3308.2,8.63056409]
[1642255675883,12.58288342,3308.3,3308.2,8.63056409]
[1642255676082,9.7977367,3308.3,3308.2,8.63056409]
[1642255676882,10.5537367,3308.3,3308.2,8.63056409]
[1642255677482,10.5537367,3308.3,3308.2,6.0456]
[1642255678330,13.44694211,3308.3,3308.2,6.0456]
[1642255678533,13.44694211,3308.3,3308.2,3.0626]
[1642255681785,10.5537367,3308.3,3308.2,3.0626]
[1642255682183,13.31061859,3308.3,3308.2,3.0626]
[1642255682385,13.30834489,3308.3,3308.2,3.0626]
[1642255683986,10.551463,3308.3,3308.2,3.0626]
[1642255684188,12.53838722,3308.3,3308.2,3.04397]
[1642255684386,12.53838722,3308.3,3308.2,3.04268]
[1642255685631,13.29435722,3308.3,3308.2,3.04268]
[1642255686236,0.045463,3308.3,3308.2,3.04268]
[1642255686432,1.5232529,3308.4,3308.2,3.04268]
[1642255686636,1.5222929,3308.4,3308.2,2.86846]
[1642255688736,1.51386702,3308.5,3308.3,2.77232801]
[1642255688939,1.51386702,3308.5,3308.2,2.86846]
[1642255688940,0.99733269,3308.7,3308.2,2.86846]
[1642255689183,0.00284212,3308.4,3308.2,2.86846]
[1642255689583,0.0022737,3308.3,3308.2,2.86846]
[1642255689884,0.00341054,3308.3,3308.2,2.86846]
[1642255690584,0.00341054,3308.3,3308.2,3.734206]
[1642255693242,0.04887354,3308.3,3308.2,3.734206]
[1642255693640,0.00341054,3308.3,3308.2,3.734206]
[1642255695044,0.00341054,3308.3,3308.2,2.86846]
[1642255697384,0.00341054,3308.3,3308.2,3.95093037]
[1642255698684,0.00341054,3308.3,3308.2,7.35093037]
[1642255698884,0.00341054,3308.3,3308.2,10.21112277]
[1642255699483,0.00341054,3308.3,3308.2,11.37691271]
[1642255699887,0.00341054,3308.3,3308.2,8.51672031]
[1642255700085,0.00341054,3308.3,3308.2,11.5006381]
[1642255700535,0.00341054,3308.3,3308.2,11.26728634]
[1642255701636,0.00341054,3308.3,3308.2,11.37094734]
[1642255703034,0.00341054,3308.3,3308.2,11.3412826]
[1642255704183,6.0,3308.9,3308.3,8.25]
[1642255704184,3.06587354,3308.9,3308.3,8.25]
[1642255704387,3.06587354,3308.9,3308.5,0.75557]
[1642255704583,0.00170527,3308.8,3308.3,8.25]
[1642255704983,0.00113685,3308.7,3308.3,8.25]
[1642255705183,0.00113685,3308.7,3308.3,0.7555415]
[1642255705388,0.0636292,3308.6,3308.2,5.11842558]
[1642255705586,0.00113685,3308.7,3308.2,3.95263564]
[1642255705786,0.03931746,3308.6,3308.4,2.5845734]
[1642255705985,0.00113685,3308.7,3308.4,2.5845734]
[1642255706792,1.19983372,3308.6,3308.3,2.58571024]
[1642255706989,2.09239438,3308.6,3308.3,2.58571024]
[1642255707189,0.02618272,3308.5,3308.2,2.86846]
[1642255707388,0.02731957,3308.5,3308.2,2.86846]
[1642255707589,0.00113685,3308.5,3308.2,2.86846]
[1642255708434,17.55,3308.4,3307.7,3.87903745]
[1642255708633,0.03246811,3308.2,3307.7,3.87903745]
[1642255708833,1.6854943,3308.2,3307.8,0.00284212]
[1642255709033,1.5122626,3308.1,3307.8,0.00284212]
[1642255709233,1.5122626,3308.1,3307.4,4.9846605]
[1642255709234,19.0622626,3308.1,3307.4,4.9846605]
[1642255709434,0.04182447,3308.0,3307.4,4.9846605]
[1642255709635,1.34680458,3307.8,3307.4,4.38893536]
[1642255709832,0.75622,3307.7,3307.4,4.38893536]
[1642255710033,0.96074012,3307.6,3307.4,4.38893536]
[1642255710433,0.96074012,3307.6,3307.2,2.25436921]
[1642255710635,0.01762524,3307.5,3306.3,6.21]
[1642255710836,4.15615,3307.4,3307.3,0.00113685]
[1642255711035,0.20464012,3307.6,3307.3,0.00113685]
[1642255711237,0.01283657,3308.5,3307.3,0.00113685]
[1642255711238,3.7877,3309.3,3307.6,0.0316949]
[1642255711436,4.1072,3309.4,3307.6,0.0316949]
[1642255711687,0.7558053,3308.8,3307.7,6.0464]
[1642255712090,0.76205795,3308.8,3307.7,6.0464]
[1642255712292,1.51556469,3307.8,3307.7,6.0464]
[1642255712488,2.49165432,3307.8,3307.7,12.0464]
[1642255712693,0.97608963,3307.8,3307.7,12.0464]
[1642255713191,1.13310724,3307.9,3307.8,12.55]
[1642255713390,0.00625265,3308.8,3307.8,20.45658]
[1642255713589,3.06587354,3308.9,3307.9,3.39570944]
[1642255713788,3.06587354,3308.9,3308.0,6.0459]
[1642255713991,1.15509344,3308.2,3308.1,3.13940302]
[1642255714191,1.12509344,3308.2,3308.1,19.13520302]
[1642255714390,1.12509344,3308.2,3308.1,9.18520302]
[1642255714391,1.12793555,3308.2,3308.1,9.18520302]
[1642255714591,1.12793555,3308.2,3308.1,6.0458]
[1642255714796,1.12793555,3308.2,3308.1,8.87153062]
[1642255714992,1.12793555,3308.2,3308.1,6.0458]
[1642255715191,1.12793555,3308.2,3308.1,8.90509763]
[1642255715439,1.12793555,3308.2,3308.1,12.35509763]